fUSD/lending_fUSD_20250404
["ID","MTS","AMOUNT","RATE_DAILY","PERIOD"]
[357130891,1743774646222,-561.91302211,0.00050136,120]
[357130892,1743774646232,-500.0,0.00050136,120]
[357130893,1743774646241,-500.0,0.00050136,120]
[357130895,1743774646251,-258.32510544,0.00050136,120]
[357130896,1743774646260,-500.0,0.00050136,120]
[357130897,1743774646269,-500.0,0.00050136,120]
[357130898,1743774646278,-273.08290956,0.00050136,120]
[357130899,1743774646287,-500.0,0.00050136,120]
[357130900,1743774646297,-500.0,0.00050136,120]
[357130901,1743774646305,-500.0,0.00050136,120]
[357130902,1743774646314,-240.89252329,0.00050136,120]
[357130903,1743774646324,-501.22758794,0.00050136,120]
[357130904,1743774646333,-500.0,0.00050136,120]
[357130905,1743774646342,-500.0,0.00050136,120]
[357130906,1743774646353,-500.0,0.00050136,120]
[357130907,1743774646363,-623.26723545,0.00050136,120]
[357130908,1743774646372,-500.0,0.00050136,120]
[357130909,1743774646381,-837.06,0.00050136,120]
[357130910,1743774646390,-500.0,0.00050136,120]
[357130911,1743774646399,-500.0,0.00050136,30]
[357130912,1743774646408,-861.68,0.00050136,120]
[357130913,1743774646417,-500.0,0.00050136,12]
[357130914,1743774646427,-500.0,0.00050136,120]
[357130915,1743774646436,-268.40058625,0.00050136,120]
[357130916,1743774646446,-500.0,0.00050136,120]
[357130917,1743774646454,-535.46286945,0.00050136,120]
[357130918,1743774646467,-500.0,0.00050136,120]
[357130919,1743774646478,-500.0,0.00050136,120]
[357130920,1743774646488,-500.0,0.00050136,120]
[357130921,1743774646498,-323.09107961,0.00050136,120]
[357130922,1743774646507,-309.97503208,0.00050136,120]
[357130923,1743774646516,-2762.29,0.00050136,120]
[357130924,1743774646526,-500.0,0.00050136,100]
[357130925,1743774646535,-500.0,0.00050136,120]
[357130926,1743774646545,-500.0,0.00050136,120]
[357130927,1743774646554,-500.0,0.00050136,120]
[357130928,1743774646563,-568.59,0.00050136,120]
[357130929,1743774646572,-839.0,0.00050136,120]
[357130930,1743774646582,-500.0,0.00050136,120]
[357130931,1743774646591,-500.0,0.00050136,120]
[357130932,1743774646602,-746.77,0.00050136,120]
[357130933,1743774646611,-220.07888574,0.00050136,120]
[357130934,1743774646621,-500.0,0.00050136,120]
[357130935,1743774646631,-157.6028606,0.00050136,7]
[357130936,1743774646640,-500.0,0.00050136,120]
[357130937,1743774646649,-500.0,0.00050136,120]
[357130938,1743774646658,-500.0,0.00050136,120]
[357130939,1743774646667,-500.0,0.00050136,120]
[357130940,1743774646676,-484.90035094,0.00050136,120]
[357130941,1743774646686,-830.42,0.00050136,120]
[357130942,1743774646695,-500.0,0.00050136,120]
[357130943,1743774646704,-712.98,0.00050136,120]
[357130944,1743774646713,-500.0,0.00050136,120]
[357130945,1743774646723,-500.0,0.00050136,120]
[357130946,1743774646731,-1925.64,0.00050136,120]
[357130947,1743774646741,-500.0,0.00050136,120]
[357130948,1743774646750,-500.0,0.00050136,7]
[357130949,1743774646759,-500.0,0.00050136,120]
[357130950,1743774646768,-500.0,0.00050136,120]
[357130951,1743774646778,-622.4,0.00050136,120]
[357130952,1743774646787,-528.31,0.00050136,120]
[357130953,1743774646797,-500.0,0.00050136,120]
[357130954,1743774646806,-500.0,0.00050136,10]
[357130955,1743774646815,-169.91980135,0.00050136,120]
[357130956,1743774646824,-500.0,0.00050136,120]
[357130957,1743774646833,-561.96,0.00050136,120]
[357130958,1743774646843,-230.43948957,0.00050136,120]
[357130959,1743774646854,-534.77,0.00050136,120]
[357130960,1743774646864,-500.0,0.00050136,120]
[357130961,1743774646873,-500.0,0.00050136,120]
[357130962,1743774646883,-500.0,0.00050136,120]
[357130963,1743774646892,-500.0,0.00050136,120]
[357130964,1743774646901,-524.81894538,0.00050136,120]
[357130965,1743774646911,-1792.65,0.00050136,120]
[357130966,1743774646922,-500.0,0.00050136,120]
[357130967,1743774646931,-500.0,0.00050136,120]
[357130968,1743774646940,-500.0,0.00050136,120]
[357130969,1743774646949,-526.99466434,0.00050136,120]
[357130970,1743774646959,-523.59,0.00050136,120]
[357130971,1743774646968,-1933.35,0.00050136,120]
[357130972,1743774646977,-2532.79,0.00050136,7]
[357130973,1743774646987,-500.0,0.00050136,120]
[357130974,1743774646996,-218.3680652,0.00050136,120]
[357130975,1743774647006,-529.49737016,0.00050136,120]
[357130976,1743774647015,-635.29,0.00050136,120]
[357130977,1743774647025,-524.3,0.00050136,120]
[357130978,1743774647035,-500.0,0.00050136,120]
[357130979,1743774647044,-788.52,0.00050136,120]
[357130980,1743774647054,-500.0,0.00050136,120]
[357130981,1743774647064,-975.29,0.00050136,120]
[357130982,1743774647074,-500.0,0.00050136,120]
[357130983,1743774647084,-500.0,0.00050136,120]
[357130984,1743774647094,-500.0,0.00050136,120]
[357130985,1743774647109,-909.22,0.00050136,120]
[357130986,1743774647118,-618.47,0.00050136,120]
[357130987,1743774647128,-500.0,0.00050136,120]
[357130988,1743774647139,-500.0,0.00050136,120]
[357130989,1743774647148,-1272.94,0.00050136,120]
[357130990,1743774647158,-208.66123594,0.00050136,120]
[357130991,1743774647169,-972.82,0.00050136,120]
[357130992,1743774647179,-500.0,0.00050136,120]
[357130993,1743774647269,-500.0,0.00050136,120]
[357130994,1743774647290,-1095.21,0.00050136,30]
[357130995,1743774647302,-5176.1,0.00050136,120]
[357130996,1743774647313,-500.0,0.00050136,120]
[357130997,1743774647324,-500.0,0.00050136,2]
[357130998,1743774647336,-805.41,0.00050136,120]
[357130999,1743774647346,-500.0,0.00050136,120]
[357131000,1743774647364,-500.0,0.00050136,120]
[357131001,1743774647374,-305.56061959,0.00050136,120]
[357131002,1743774647384,-500.0,0.00050136,120]
[357131003,1743774647394,-500.0,0.00050136,120]
[357131004,1743774647404,-753.16,0.00050136,120]
[357131005,1743774647413,-500.0,0.00050136,120]
[357131006,1743774647424,-1375.86,0.00050136,120]
[357131007,1743774647434,-500.0,0.00050136,120]
[357131008,1743774647444,-1179.3,0.00050136,120]
[357131009,1743774647454,-500.0,0.00050136,120]
[357131010,1743774647464,-500.0,0.00050136,120]
[357131011,1743774647474,-500.0,0.00050136,2]
[357131012,1743774647483,-500.0,0.00050136,2]
[357131013,1743774647492,-500.0,0.00050136,2]
[357131014,1743774647502,-500.0,0.00050136,120]
[357131015,1743774647512,-170.4947342,0.00050153,28]
[357131016,1743774647521,-6474.22307857,0.00050162,2]
[357131017,1743774647531,-519.07780137,0.00050162,2]
[357131018,1743774647540,-185.9152458,0.00050162,10]
[357131019,1743774647549,-3411.11379472,0.00050165,15]
[357131020,1743774647559,-502.35504432,0.00050182,60]
[357131021,1743774647568,-183.94814314,0.0005024,7]
[357131022,1743774647577,-500.0,0.00050249,120]
[357131023,1743774647587,-500.0,0.00050249,120]
[357131024,1743774647596,-500.0,0.00050249,120]
[357131025,1743774647608,-500.0,0.00050249,120]
[357131026,1743774647617,-719929.89856067,0.0005025,120]
[357131027,1743774647631,-1963.27588304,0.0005025,120]
[357131028,1743774647641,-82500.0,0.0005025,120]
[357131029,1743774647778,-1414.8709674,0.0005025,120]
[357131030,1743774648436,-21.91019971,0.00049718,7]
[357131031,1743774648820,-128.08980029,0.00049718,7]
[357131032,1743774648829,-150.0,0.00049733,7]
[357131033,1743774648839,-150.0,0.0004974,7]
[357131034,1743774648848,-150.0,0.00049756,7]
[357131035,1743774648859,-150.0,0.00049757,7]
[357131036,1743774648869,-116.16675955,0.00049763,7]
[357131037,1743774649408,-150.0,0.00049726,7]
[357131038,1743774649421,-150.0,0.00049737,7]
[357131039,1743774649440,-150.0,0.00049741,7]
[357131040,1743774649455,-150.0,0.00049742,7]
[357131041,1743774649472,-150.0,0.00049743,7]
[357131042,1743774649491,-72.9703,0.00049743,7]
[357131044,1743774669570,155.35,0.00026849,2]
[357131045,1743774669796,155.35,0.00036862,2]
[357131046,1743774670041,155.35,0.00046874,2]
[357131047,1743775645134,-318.69156233,0.00043,5]
[357131048,1743775646090,-681.30843767,0.00043,5]
[357131049,1743775646118,-109.91469884,0.000436,36]
[357131050,1743775652155,-44.79530116,0.000436,36]
[357131051,1743775652178,-152.67856202,0.000438,120]
[357131052,1743775652202,-479.84,0.00046167,2]
[357131053,1743775652367,-154.71,0.000474,42]
[357131054,1743775652406,-154.71,0.000474,42]
[357131055,1743775652431,-66.27073011,0.00048129,7]
[357131067,1743775831886,-35.41017356,0.00048129,7]
[357131068,1743775831922,-48.31909633,0.00048129,7]
[357131069,1743775831932,-150.0,0.0004815,2]
[357131070,1743775831942,-550.0,0.00048179,5]
[357131071,1743775831952,-12049.71784719,0.0004818,2]
[357131086,1743775837765,-500.0,0.00048179,120]
[357131087,1743775837775,-538.6508462,0.00048179,120]
[357131088,1743775837785,-11850.28215281,0.0004818,2]
[357131089,1743775837795,-363.24,0.00048309,2]
[357131090,1743775837804,-1000.0,0.00048348,2]
[357131091,1743775837814,-163.23,0.00048392,120]
[357131092,1743775837823,-479.84,0.00048431,2]
[357131093,1743775837833,-250.0,0.00048431,120]
[357131094,1743775837845,-999.99,0.00048431,10]
[357131095,1743775837854,-401.87,0.00048451,2]
[357131096,1743775837864,-155.5,0.0004847,2]
[357131097,1743775837874,-591.7479361,0.00048657,4]
[357131098,1743775837883,-634.70901779,0.00048799,9]
[357131099,1743775837894,-116000.0,0.000488,60]
[357131100,1743775837903,-1220.71750678,0.00048821,30]
[357131101,1743775837914,-349.265,0.00048999,85]
[357131102,1743775837923,-29999.82012972,0.00049,120]
[357131103,1743775837932,-561.77326134,0.00049,60]
[357131104,1743775837942,-1000.0,0.00049215,2]
[357131105,1743775837951,-500.0,0.00049315,16]
[357131106,1743775837960,-500.0,0.00049315,2]
[357131107,1743775837970,-500.0,0.00049315,3]
[357131108,1743775837981,-500.0,0.00049315,120]
[357131109,1743775837990,-590.67034771,0.00049315,120]
[357131110,1743775838000,-500.0,0.00049315,120]
[357131111,1743775838009,-500.0,0.00049315,120]
[357131112,1743775838019,-500.0,0.00049315,120]
[357131113,1743775838028,-500.0,0.00049315,120]
[357131114,1743775838037,-500.0,0.00049315,120]
[357131115,1743775838047,-500.0,0.00049315,120]
[357131116,1743775838056,-500.0,0.00049315,2]
[357131117,1743775838065,-513.61878868,0.00049315,120]
[357131118,1743775838075,-503.85916429,0.00049315,120]
[357131119,1743775838084,-351.73327619,0.00049315,120]
[357131120,1743775838096,-500.0,0.00049315,120]
[357131121,1743775838105,-500.0,0.00049315,120]
[357131122,1743775838115,-500.0,0.00049315,120]
[357131123,1743775838124,-169.51348153,0.00049315,120]
[357131124,1743775838133,-500.0,0.00049315,120]
[357131126,1743775838143,-500.0,0.00049315,120]
[357131127,1743775838152,-500.0,0.00049315,120]
[357131128,1743775838161,-500.0,0.00049315,120]
[357131129,1743775838171,-500.0,0.00049315,120]
[357131131,1743775838180,-420.87809743,0.00049315,120]
[357131133,1743775838190,-500.0,0.00049315,120]
[357131135,1743775838199,-500.0,0.00049315,120]
[357131137,1743775838209,-732.43,0.00049315,120]
[357131139,1743775838218,-500.0,0.00049315,120]
[357131141,1743775838227,-500.0,0.00049315,120]
[357131143,1743775838236,-643.45209225,0.00049315,120]
[357131145,1743775838245,-643.45209225,0.00049315,120]
[357131146,1743775838253,-643.45209225,0.00049315,120]
[357131148,1743775838263,-643.45209225,0.00049315,120]
[357131150,1743775838272,-643.45209225,0.00049315,120]
[357131152,1743775838281,-643.45209225,0.00049315,120]
[357131154,1743775838290,-643.45209225,0.00049315,120]
[357131155,1743775838299,-643.45209225,0.00049315,120]
[357131156,1743775838308,-643.45209225,0.00049315,120]
[357131157,1743775838317,-643.45209225,0.00049315,120]
[357131158,1743775838333,-643.45209225,0.00049315,120]
[357131159,1743775838347,-643.45209225,0.00049315,120]
[357131160,1743775838356,-643.45209225,0.00049315,120]
[357131161,1743775838366,-643.45209225,0.00049315,120]
[357131162,1743775838375,-643.45209225,0.00049315,120]
[357131163,1743775838385,-683.04914408,0.00049315,120]
[357131164,1743775838395,-683.04914408,0.00049315,120]
[357131165,1743775838404,-683.04914408,0.00049315,120]
[357131166,1743775838414,-683.04914408,0.00049315,120]
[357131167,1743775838424,-683.04914408,0.00049315,120]
[357131168,1743775838433,-683.04914408,0.00049315,120]
[357131169,1743775838443,-683.04914408,0.00049315,120]
[357131170,1743775838453,-683.04914408,0.00049315,120]
[357131171,1743775838463,-683.04914408,0.00049315,120]
[357131172,1743775838474,-683.04914408,0.00049315,120]
[357131173,1743775838484,-769.98267153,0.00049315,120]
[357131174,1743775838496,-769.98267153,0.00049315,120]
[357131175,1743775838508,-500.0,0.00049315,120]
[357131176,1743775838517,-500.0,0.00049315,120]
[357131177,1743775838527,-500.0,0.00049315,120]
[357131178,1743775838537,-500.0,0.00049315,120]
[357131179,1743775838547,-500.0,0.00049315,120]
[357131180,1743775838556,-500.0,0.00049315,120]
[357131181,1743775838565,-482.87791166,0.00049315,120]
[357131182,1743775838577,-500.0,0.00049315,120]
[357131183,1743775838587,-500.0,0.00049315,120]
[357131184,1743775838597,-232.0,0.00049315,90]
[357131185,1743775838607,-232.0,0.00049315,90]
[357131186,1743775838617,-232.0,0.00049315,90]
[357131187,1743775838626,-232.0,0.00049315,90]
[357131188,1743775838636,-232.0,0.00049315,90]
[357131189,1743775838645,-232.0,0.00049315,90]
[357131190,1743775838655,-232.0,0.00049315,90]
[357131191,1743775838665,-232.0,0.00049315,90]
[357131192,1743775838675,-232.0,0.00049315,90]
[357131193,1743775838686,-232.0,0.00049315,90]
[357131194,1743775838695,-232.0,0.00049315,90]
[357131195,1743775838704,-232.0,0.00049315,90]
[357131196,1743775838713,-232.0,0.00049315,90]
[357131197,1743775838722,-232.0,0.00049315,90]
[357131198,1743775838732,-232.0,0.00049315,90]
[357131199,1743775838899,-232.0,0.00049315,90]
[357131200,1743775838908,-232.0,0.00049315,90]
[357131201,1743775838917,-232.0,0.00049315,90]
[357131202,1743775838927,-232.0,0.00049315,90]
[357131203,1743775838935,-232.0,0.00049315,90]
[357131204,1743775838944,-232.0,0.00049315,90]
[357131205,1743775838953,-232.0,0.00049315,90]
[357131206,1743775838962,-232.0,0.00049315,90]
[357131207,1743775838971,-232.0,0.00049315,90]
[357131208,1743775838981,-232.0,0.00049315,90]
[357131209,1743775838990,-232.0,0.00049315,90]
[357131210,1743775838999,-232.0,0.00049315,90]
[357131211,1743775839009,-166.66,0.00049519,2]
[357131212,1743775839018,-500.0,0.00049588,120]
[357131213,1743775839027,-230.43948957,0.00049588,120]
[357131214,1743775839036,-1568.56,0.00049588,120]
[357131215,1743775839045,-500.0,0.00049588,120]
[357131216,1743775839055,-1691.69,0.00049588,120]
[357131217,1743775839064,-689.95,0.00049588,120]
[357131218,1743775839073,-529.49737016,0.00049588,120]
[357131219,1743775839083,-500.0,0.00049588,120]
[357131220,1743775839094,-500.0,0.00049588,120]
[357131221,1743775839103,-795.56,0.00049588,120]
[357131222,1743775839112,-612.01822974,0.00049588,120]
[357131223,1743775839122,-500.0,0.00049588,120]
[357131224,1743775839131,-500.0,0.00049588,120]
[357131225,1743775839141,-659.01,0.00049588,120]
[357131226,1743775839151,-500.0,0.00049588,120]
[357131227,1743775839163,-500.0,0.00049588,120]
[357131228,1743775839173,-500.0,0.00049588,120]
[357131229,1743775839183,-500.0,0.00049588,120]
[357131230,1743775839196,-500.0,0.00049588,120]
[357131231,1743775839205,-500.0,0.00049588,120]
[357131232,1743775839228,-309.97503208,0.00049588,120]
[357131233,1743775839252,-500.0,0.00049588,100]
[357131234,1743775839265,-500.0,0.00049588,120]
[357131235,1743775839281,-500.0,0.00049588,120]
[357131236,1743775839291,-500.0,0.00049588,120]
[357131237,1743775839300,-500.0,0.00049588,120]
[357131238,1743775839310,-734.13,0.00049588,120]
[357131239,1743775839319,-500.0,0.00049588,2]
[357131240,1743775839343,-608.1,0.00049588,120]
[357131241,1743775839353,-500.0,0.00049589,16]
[357131242,1743775839363,-500.0,0.00049589,2]
[357131243,1743775839372,-500.0,0.00049589,3]
[357131244,1743775839382,-517.3183573,0.00049589,120]
[357131245,1743775839407,-537.96693723,0.00049589,120]
[357131246,1743775839439,-524.60394143,0.00049589,120]
[357131247,1743775839450,-500.0,0.00049589,120]
[357131248,1743775839460,-515.28155562,0.00049589,120]
[357131249,1743775839470,-301.67021339,0.00049589,120]
[357131250,1743775839480,-500.0,0.00049589,120]
[357131251,1743775839490,-501.6563957,0.00049589,2]
[357131252,1743775839504,-500.0,0.00049589,120]
[357131253,1743775839513,-500.0,0.00049589,120]
[357131254,1743775839522,-500.0,0.00049589,120]
[357131255,1743775839531,-500.0,0.00049589,120]
[357131256,1743775839540,-500.0,0.00049589,120]
[357131257,1743775839550,-500.0,0.00049589,120]
[357131258,1743775839559,-500.0,0.00049589,120]
[357131259,1743775839568,-492.17182908,0.00049589,120]
[357131260,1743775839577,-500.0,0.00049589,120]
[357131261,1743775839586,-500.0,0.00049589,120]
[357131262,1743775839597,-732.43,0.00049589,120]
[357131263,1743775839607,-500.0,0.00049589,120]
[357131264,1743775839616,-500.0,0.00049589,120]
[357131265,1743775839625,-170.4947342,0.00049699,28]
[357131266,1743775839635,-1364.44551796,0.00049699,15]
[357131267,1743775839644,-77.0297,0.00049743,7]
[357131268,1743775839654,-33.83324045,0.00049763,7]
[357131269,1743775839663,-1731.69359091,0.00049786,120]
[357131270,1743775839674,-500.0,0.00049799,2]
[357131271,1743775839683,-500.0,0.00049799,120]
[357131272,1743775839692,-485.61249635,0.00049799,2]
[357131273,1743775839702,-824.87,0.00049799,120]
[357131274,1743775839711,-500.0,0.00049799,120]
[357131275,1743775839721,-500.0,0.00049799,120]
[357131276,1743775839730,-500.0,0.00049799,30]
[357131277,1743775839740,-500.0,0.00049799,120]
[357131278,1743775839749,-500.0,0.00049799,120]
[357131279,1743775839758,-157.6028606,0.00049799,7]
[357131280,1743775839767,-345.64470407,0.00049799,120]
[357131281,1743775839776,-500.0,0.00049799,120]
[357131282,1743775839785,-264.83196073,0.00049799,120]
[357131283,1743775839795,-500.0,0.00049799,120]
[357131284,1743775839805,-725.6,0.00049799,120]
[357131285,1743775839814,-500.0,0.00049799,120]
[357131286,1743775839823,-500.0,0.00049799,120]
[357131287,1743775839833,-500.0,0.00049799,120]
[357131288,1743775839843,-258.32510544,0.00049799,120]
[357131289,1743775839854,-561.91302211,0.00049799,120]
[357131290,1743775839864,-726.62,0.00049799,120]
[357131291,1743775839874,-500.0,0.00049799,120]
[357131292,1743775839883,-273.08290956,0.00049799,120]
[357131293,1743775839892,-500.0,0.00049799,120]
[357131294,1743775839902,-1684.94,0.00049799,120]
[357131295,1743775839911,-500.0,0.00049799,2]
[357131296,1743775839920,-240.89252329,0.00049799,120]
[357131297,1743775839929,-500.0,0.00049799,120]
[357131298,1743775839938,-501.22758794,0.00049799,120]
[357131299,1743775839947,-500.0,0.00049799,10]
[357131300,1743775839957,-500.0,0.00049799,120]
[357131301,1743775839966,-500.0,0.00049799,120]
[357131302,1743775839975,-500.0,0.00049799,120]
[357131303,1743775839984,-623.26723545,0.00049799,120]
[357131304,1743775839994,-500.0,0.00049799,120]
[357131305,1743775840003,-500.0,0.00049799,120]
[357131306,1743775840012,-753.97,0.00049799,120]
[357131307,1743775840022,-541.16,0.00049799,120]
[357131308,1743775840032,-500.0,0.00049799,12]
[357131309,1743775840041,-500.0,0.00049799,120]
[357131310,1743775840051,-500.0,0.00049799,30]
[357131311,1743775840060,-500.0,0.00049799,120]
[357131312,1743775840070,-334.90377611,0.00049799,120]
[357131313,1743775840080,-704.73,0.00049799,120]
[357131314,1743775840090,-535.46286945,0.00049799,120]
[357131315,1743775840099,-500.0,0.00049799,120]
[357131316,1743775840109,-500.0,0.00049799,120]
[357131317,1743775840118,-268.40058625,0.00049799,120]
[357131318,1743775840128,-323.09107961,0.00049799,120]
[357131319,1743775840137,-500.0,0.00049799,120]
[357131320,1743775840146,-500.0,0.00049799,120]
[357131321,1743775840156,-500.0,0.00049799,120]
[357131322,1743775840165,-220.07888574,0.00049799,120]
[357131323,1743775840175,-500.0,0.00049799,120]
[357131324,1743775840185,-500.0,0.00049799,120]
[357131325,1743775840194,-500.0,0.00049799,120]
[357131326,1743775840204,-500.0,0.00049799,120]
[357131327,1743775840214,-653.42,0.00049799,120]
[357131328,1743775840223,-500.0,0.00049799,120]
[357131329,1743775840233,-500.0,0.00049799,120]
[357131330,1743775840243,-500.0,0.00049799,120]
[357131331,1743775840253,-500.0,0.00049799,120]
[357131332,1743775840262,-500.0,0.00049799,120]
[357131333,1743775840272,-500.0,0.00049799,120]
[357131334,1743775840281,-604.20801043,0.00049799,120]
[357131335,1743775840291,-500.0,0.00049799,120]
[357131336,1743775840300,-623.85,0.00049799,120]
[357131337,1743775840310,-484.90035094,0.00049799,120]
[357131338,1743775840319,-500.0,0.00049799,120]
[357131339,1743775840328,-718.44,0.00049799,120]
[357131340,1743775840337,-500.0,0.00049799,120]
[357131341,1743775840348,-500.0,0.00049799,120]
[357131342,1743775840358,-500.0,0.00049799,120]
[357131343,1743775840367,-500.0,0.00049799,120]
[357131344,1743775840376,-500.0,0.00049799,120]
[357131345,1743775840386,-500.0,0.00049799,7]
[357131346,1743775840395,-500.0,0.00049799,120]
[357131347,1743775840404,-500.0,0.00049799,120]
[357131348,1743775840414,-544.6,0.00049799,120]
[357131349,1743775840423,-500.0,0.00049799,120]
[357131350,1743775840432,-500.0,0.00049799,120]
[357131351,1743775840442,-169.91980135,0.00049799,120]
[357131352,1743775840451,-500.0,0.00049799,120]
[357131353,1743775840460,-500.0,0.00049799,120]
[357131354,1743775840470,-234.07215368,0.00049799,120]
[357131355,1743775840479,-500.0,0.00049799,120]
[357131356,1743775840493,-524.81894538,0.00049799,120]
[357131357,1743775840503,-500.0,0.00049799,120]
[357131358,1743775840512,-500.0,0.00049799,120]
[357131359,1743775840521,-500.0,0.00049799,120]
[357131360,1743775840532,-500.0,0.00049799,120]
[357131361,1743775840541,-500.0,0.00049799,120]
[357131362,1743775840550,-500.0,0.00049799,120]
[357131364,1743775840559,-500.0,0.00049799,120]
[357131366,1743775840569,-500.0,0.00049799,120]
[357131368,1743775840580,-526.99466434,0.00049799,120]
[357131370,1743775840591,-500.0,0.00049799,120]
[357131372,1743775840600,-2216.19,0.00049799,7]
[357131374,1743775840609,-208.66123594,0.00049799,120]
[357131376,1743775840618,-632.68,0.00049799,120]
[357131378,1743775840627,-1037.83,0.00049799,120]
[357131380,1743775840636,-500.0,0.00049799,120]
[357131382,1743775840645,-218.3680652,0.00049799,120]
[357131384,1743775840654,-504.0299819,0.00049799,120]
[357131386,1743775840663,-500.0,0.00049799,120]
[357131388,1743775840672,-500.0,0.00049799,120]
[357131390,1743775840681,-500.0,0.00049799,120]
[357131392,1743775840690,-500.0,0.00049799,120]
[357131394,1743775840699,-853.38,0.00049799,120]
[357131396,1743775840711,-500.0,0.00049799,120]
[357131398,1743775840720,-1113.83,0.00049799,120]
[357131399,1743775840728,-851.22,0.00049799,120]
[357131401,1743775840737,-1710.93,0.00049799,10]
[357131404,1743775840747,-958.31,0.00049799,30]
[357131406,1743775840756,-500.0,0.00049799,120]
[357131407,1743775840765,-4529.09,0.00049799,120]
[357131409,1743775840774,-500.0,0.00049799,30]
[357131411,1743775840783,-500.0,0.00049799,120]
[357131413,1743775840793,-500.0,0.00049799,120]
[357131415,1743775840802,-609.54692479,0.00049799,120]
[357131417,1743775840811,-500.0,0.00049799,120]
[357131419,1743775840820,-305.56061959,0.00049799,120]
[357131421,1743775840829,-988.89,0.00049799,120]
[357131423,1743775840839,-500.0,0.00049799,7]
[357131425,1743775840848,-500.0,0.00049799,120]
[357131427,1743775840857,-500.0,0.00049799,120]
[357131429,1743775840867,-500.0,0.00049799,120]
[357131431,1743775840875,-1203.88,0.00049799,120]
[357131432,1743775840884,-500.0,0.00049799,2]
[357131433,1743775840894,-500.0,0.00049799,2]
[357131434,1743775840904,-2000.0,0.00049799,2]
[357131435,1743775840913,-500.0,0.00049799,120]
[357131436,1743775840924,-500.0,0.00049799,120]
[357131437,1743775840933,-500.0,0.00049799,120]
[357131438,1743775840943,-222.87730729,0.00049799,120]
[357131439,1743775840953,-159.24849884,0.00049799,120]
[357131440,1743775840962,-500.0,0.00049799,120]
[357131441,1743775840972,-533.9,0.00049799,120]
[357131442,1743775840981,-500.0,0.00049799,120]
[357131443,1743775840990,-500.0,0.00049799,120]
[357131444,1743775840999,-2417.0,0.00049799,120]
[357131445,1743775841009,-2823.84,0.00049799,2]
[357131446,1743775841018,-873.08,0.00049799,120]
[357131447,1743775841027,-500.0,0.00049799,7]
[357131448,1743775841036,-572.52288624,0.00049799,120]
[357131449,1743775841045,-34414.0,0.000498,120]
[357131450,1743775841054,-1364.44551788,0.00049832,15]
[357131451,1743775841063,-500.0,0.00049862,120]
[357131452,1743775841072,-1568.56,0.00049862,120]
[357131453,1743775841081,-500.0,0.00049862,120]
[357131454,1743775841090,-1691.69,0.00049862,120]
[357131455,1743775841099,-689.95,0.00049862,120]
[357131456,1743775841108,-500.0,0.00049862,120]
[357131457,1743775841118,-500.0,0.00049862,120]
[357131458,1743775841127,-795.56,0.00049862,120]
[357131459,1743775841137,-237.32512792,0.00049862,120]
[357131460,1743775841146,-659.01,0.00049862,120]
[357131461,1743775841155,-500.0,0.00049862,120]
[357131462,1743775841164,-202.64240195,0.00049862,120]
[357131463,1743775841174,-500.0,0.00049862,120]
[357131464,1743775841183,-500.0,0.00049862,120]